bitfinex-derivatives/quotes_BTCF0:USTF0_20250709
["timestamp","ask_amount","ask_price","bid_price","bid_amount"]
[1752096814914,0.53986038,111150.0,111140.0,1.53180214]
[1752096815118,0.04282,111160.0,111150.0,0.1798922]
[1752096815417,0.04282,111160.0,111150.0,1.28993461]
[1752096815618,0.01905241,111170.0,111160.0,0.179876]
[1752096815813,0.01905241,111170.0,111160.0,1.27585557]
[1752096816018,0.63881241,111170.0,111160.0,1.27585557]
[1752096816208,0.63881241,111170.0,111160.0,1.2931208]
[1752096816712,0.63881241,111170.0,111160.0,1.30718069]
[1752096817114,0.63881241,111170.0,111160.0,1.32282079]
[1752096817419,0.63981241,111170.0,111160.0,1.32282079]
[1752096817817,0.63981241,111170.0,111160.0,1.34640079]
[1752096818417,0.63981241,111170.0,111160.0,1.35694503]
[1752096818602,0.64081241,111170.0,111160.0,1.35694503]
[1752096819614,0.64081241,111170.0,111160.0,1.35694488]
[1752096820112,0.64081241,111170.0,111160.0,1.34640079]
[1752096820420,0.64081241,111170.0,111160.0,1.35694487]
[1752096821511,0.61968001,111170.0,111160.0,1.35694487]
[1752096822513,0.61968,111170.0,111160.0,1.3323409]
[1752096822719,0.61968,111170.0,111160.0,1.35794366]
[1752096823320,0.61968,111170.0,111160.0,0.8080443]
[1752096823520,0.61968,111170.0,111160.0,1.37431366]
[1752096824210,0.91178968,111170.0,111160.0,0.55185388]
[1752096824422,1.04878968,111170.0,111160.0,0.49821367]
[1752096824820,0.77332,111170.0,111160.0,0.23807399]
[1752096825520,0.77332,111170.0,111160.0,0.23807464]
[1752096825913,1.22856253,111170.0,111160.0,0.23807464]
[1752096826115,1.58936253,111170.0,111160.0,0.23807464]
[1752096826420,1.04870273,111170.0,111160.0,0.23807464]
[1752096826824,0.75668,111170.0,111160.0,0.22274464]
[1752096827116,0.9776098,111170.0,111160.0,0.23807464]
[1752096827322,0.79775,111170.0,111160.0,0.23807464]
[1752096827513,1.15855,111170.0,111160.0,0.23807464]
[1752096827715,0.91950423,111190.0,111160.0,0.69438137]
[1752096827916,0.7519,111180.0,111170.0,0.45524253]
[1752096828116,0.76854,111180.0,111170.0,0.46930125]
[1752096828417,0.76854,111180.0,111170.0,0.46930137]
[1752096828719,0.76854,111180.0,111170.0,0.48463137]
[1752096828915,0.76854,111180.0,111170.0,0.46930137]
[1752096829321,0.76854,111180.0,111170.0,0.48463137]
[1752096829721,1.12934,111180.0,111170.0,0.48463137]
[1752096829921,1.12934,111180.0,111170.0,0.20924864]
[1752096830418,1.88437906,111180.0,111170.0,0.19391864]
[1752096830919,1.60899633,111180.0,111170.0,0.19391864]
[1752096832621,1.60899633,111180.0,111170.0,0.1798598]
[1752096834117,1.42915273,111180.0,111170.0,0.1798598]
[1752096834424,1.60899643,111180.0,111170.0,0.1798598]
[1752096834623,1.60899643,111180.0,111170.0,0.19391984]
[1752096835923,1.60899643,111180.0,111170.0,0.1798598]
[1752096837126,1.60899643,111180.0,111170.0,0.19391984]
[1752096837327,1.42915273,111180.0,111170.0,0.19391984]
[1752096837726,1.15377,111180.0,111170.0,0.19391984]
[1752096838229,1.42915273,111180.0,111170.0,0.19391984]
[1752096839129,1.60899633,111180.0,111170.0,0.19391984]
[1752096841921,1.60899633,111180.0,111170.0,0.1798598]
[1752096843330,1.61099633,111180.0,111170.0,0.1798598]
[1752096843725,1.61299633,111180.0,111170.0,0.1798598]
[1752096844229,1.25219633,111180.0,111170.0,0.1798598]
[1752096844624,1.61299633,111180.0,111170.0,0.1798598]
[1752096844930,1.61299633,111180.0,111170.0,0.19391936]
[1752096848627,2.44827506,111180.0,111170.0,0.00915036]
[1752096848930,2.44827506,111180.0,111150.0,0.35031895]
[1752096848931,0.2698197,111160.0,111150.0,0.1798922]
[1752096849129,1.59650493,111160.0,111150.0,0.19310946]
[1752096849329,1.62148493,111160.0,111150.0,0.19310946]
[1752096849531,1.69168493,111160.0,111150.0,0.19310946]
[1752096849931,1.69168493,111160.0,111150.0,0.19410946]
[1752096850125,1.69168493,111160.0,111150.0,0.19610946]
[1752096850524,0.01,111160.0,111150.0,0.51117219]
[1752096850726,0.0685,111170.0,111160.0,0.179876]
[1752096850924,1.04874,111170.0,111160.0,0.47083873]
[1752096851127,1.04874,111170.0,111160.0,0.195456]
[1752096851633,1.07372,111170.0,111160.0,0.195456]
[1752096851835,1.2285998,111170.0,111160.0,0.195456]
[1752096852134,1.2535798,111170.0,111160.0,0.195456]
[1752096852632,1.16816253,111170.0,111160.0,0.195456]
[1752096853032,1.16816253,111170.0,111160.0,0.179876]
[1752096854338,1.90896253,111170.0,111160.0,0.179876]
[1752096854541,1.52896253,111170.0,111160.0,0.179876]
[1752096854937,1.52896253,111170.0,111160.0,0.189876]
[1752096855739,1.59416253,111170.0,111160.0,0.189876]
[1752096856140,1.59416253,111170.0,111160.0,0.179876]
[1752096856439,1.59416253,111170.0,111160.0,0.189876]
[1752096856440,1.94309989,111170.0,111160.0,0.189876]
[1752096860046,1.99309989,111170.0,111160.0,0.189876]
[1752096860642,1.99309989,111170.0,111160.0,0.20393757]
[1752096861045,1.97309989,111170.0,111160.0,0.02406157]
[1752096861343,1.97309989,111170.0,111160.0,0.01406157]
[1752096861538,1.97309989,111170.0,111160.0,0.02722499]
[1752096861841,0.1798922,111150.0,111140.0,0.44895306]
[1752096862046,1.43547493,111150.0,111140.0,0.42186621]
[1752096862341,1.56877493,111150.0,111140.0,0.41131932]
[1752096862644,1.20797493,111150.0,111140.0,0.41131932]
[1752096862841,1.2933922,111150.0,111140.0,0.41131932]
[1752096863048,1.2933922,111150.0,111140.0,0.41231932]
[1752096863239,1.2933922,111150.0,111140.0,0.36073335]
[1752096863946,1.2933922,111150.0,111140.0,0.41437356]
[1752096864246,1.2933922,111150.0,111140.0,0.36073335]
[1752096865036,1.3183722,111150.0,111140.0,0.34515335]
[1752096865649,1.3183722,111150.0,111140.0,0.36073335]
[1752096866144,1.39043973,111150.0,111140.0,0.31575695]
[1752096866340,1.66582246,111150.0,111140.0,0.30017695]
[1752096867848,1.66582246,111150.0,111140.0,0.28690806]
[1752096868450,1.66582246,111150.0,111140.0,0.30007511]
[1752096869150,1.66582246,111150.0,111140.0,0.30007576]
[1752096870154,1.66582246,111150.0,111140.0,0.25509996]
[1752096872753,2.31120519,111150.0,111140.0,0.03023076]
[1752096872952,2.31116519,111150.0,111140.0,0.22068746]
[1752096873152,2.03578246,111150.0,111140.0,0.04077906]
[1752096873951,2.03578246,111150.0,111140.0,0.22068746]
[1752096874252,2.03578246,111150.0,111140.0,0.04077906]
[1752096874753,2.31116519,111150.0,111140.0,0.04077906]
[1752096874955,2.31116519,111150.0,111140.0,0.04077968]
[1752096875349,2.31116519,111150.0,111140.0,0.19607545]
[1752096875550,2.31116519,111150.0,111140.0,0.01616705]
[1752096875756,2.28116519,111150.0,111140.0,0.01616705]
[1752096875955,2.28116519,111150.0,111140.0,0.003]
[1752096876252,3.52536519,111150.0,111140.0,0.003]
[1752096876553,3.70530919,111150.0,111140.0,0.003]
[1752096877157,3.78625584,111150.0,111140.0,0.003]
[1752096877552,3.70530919,111150.0,111140.0,0.003]
[1752096879259,3.36530919,111150.0,111140.0,0.003]
[1752096879462,3.68530919,111150.0,111140.0,0.003]
[1752096880757,3.53536519,111150.0,111140.0,0.003]
[1752096882163,3.61631184,111150.0,111140.0,0.003]
[1752096882359,3.79625584,111150.0,111140.0,0.003]
[1752096882759,3.61631184,111150.0,111140.0,0.003]
[1752096884357,3.60831184,111150.0,111140.0,0.001]
[1752096884759,3.78825584,111150.0,111140.0,0.001]
[1752096885860,3.79825584,111150.0,111140.0,0.001]
[1752096886566,3.89860628,111150.0,111140.0,0.001]
[1752096887068,0.1799245,111130.0,111120.0,0.00179978]
[1752096887269,2.19340089,111130.0,111120.0,0.01526478]
[1752096887566,2.32680089,111130.0,111120.0,0.01526478]
[1752096888167,2.32680089,111130.0,111120.0,0.01626478]
[1752096888558,2.32680089,111130.0,111120.0,0.01826478]
[1752096889163,2.34079331,111130.0,111120.0,0.01826478]
[1752096889570,2.34079331,111130.0,111120.0,0.00479978]
[1752096889767,2.34079331,111130.0,111120.0,0.01826487]
[1752096890868,2.37079331,111130.0,111120.0,0.01826487]
[1752096891468,2.37079331,111130.0,111120.0,0.00479978]
[1752096892262,2.64617604,111130.0,111120.0,0.00479978]
[1752096892463,0.1799407,111120.0,111110.0,0.00179994]
[1752096892666,1.50449616,111120.0,111110.0,0.01545168]
[1752096892867,1.78670133,111120.0,111110.0,0.00179994]
[1752096893366,1.86764798,111120.0,111110.0,0.00179994]
[1752096893568,1.86764798,111120.0,111110.0,0.00379994]
[1752096893867,1.78670133,111120.0,111110.0,0.00479994]
[1752096894363,1.86740394,111120.0,111110.0,0.00479994]
[1752096895764,1.95590394,111120.0,111110.0,0.00479994]
[1752096896267,1.95590394,111120.0,111110.0,0.00179994]
[1752096896268,1.97031394,111120.0,111110.0,0.00179994]
[1752096896469,1.99325394,111120.0,111110.0,0.00179994]
[1752096899269,1.94325394,111120.0,111110.0,0.00179994]
[1752096900068,1.92031394,111120.0,111110.0,0.00179994]
[1752096900263,1.94325394,111120.0,111110.0,0.00179994]
[1752096900670,1.61325394,111120.0,111110.0,0.00179994]
[1752096900874,1.92325394,111120.0,111110.0,0.00179994]
[1752096901976,0.45537203,111090.0,111080.0,0.31949302]
[1752096902177,1.45423631,111090.0,111080.0,0.27939355]
[1752096902381,2.25745904,111090.0,111080.0,0.16939355]
[1752096903081,2.25745904,111090.0,111080.0,0.10409355]
[1752096903384,2.25745904,111090.0,111080.0,0.01757888]
[1752096904081,2.25745904,111090.0,111080.0,0.02057888]
[1752096904473,2.25745904,111090.0,111080.0,0.01757888]
[1752096904873,2.25745904,111090.0,111080.0,0.01857888]
[1752096905274,2.41077775,111090.0,111080.0,0.01857888]
[1752096905474,2.41077775,111090.0,111080.0,0.00380042]
[1752096905683,0.1800055,111080.0,111070.0,0.00180059]
[1752096905881,1.31217823,111080.0,111070.0,0.0158303]
[1752096906184,1.31217823,111080.0,111070.0,0.01583829]
[1752096907586,1.31217823,111080.0,111070.0,0.00180059]
[1752096907771,1.35217823,111080.0,111070.0,0.00180059]
[1752096907978,1.31358823,111080.0,111070.0,0.00180059]
[1752096908180,1.0611455,111080.0,111070.0,0.00180059]
[1752096908476,1.33652823,111080.0,111070.0,0.00180059]
[1752096909284,1.29652823,111080.0,111070.0,0.00180059]
[1752096910181,1.29652823,111080.0,111070.0,0.01585905]
[1752096910481,0.180038,111060.0,111050.0,0.1376]
[1752096910671,2.43821248,111060.0,111050.0,0.1476]
[1752096910876,2.55711248,111060.0,111050.0,0.1476]
[1752096911380,1.93555248,111060.0,111050.0,0.3276542]
[1752096911577,1.93555248,111060.0,111050.0,0.3529342]
[1752096911578,2.31533975,111060.0,111050.0,0.3529342]
[1752096911777,2.31533975,111060.0,111050.0,0.17288]
[1752096911976,1.78614975,111060.0,111050.0,0.3529342]
[1752096912177,2.14694975,111060.0,111050.0,0.3529342]
[1752096912382,2.14694975,111060.0,111050.0,0.3539342]
[1752096913178,2.18492609,111060.0,111050.0,0.17388]
[1752096913379,2.16123609,111060.0,111050.0,0.17388]
[1752096913581,2.18492609,111060.0,111050.0,0.17488]
[1752096913786,2.16123609,111060.0,111050.0,0.3549342]
[1752096914285,2.18492609,111060.0,111050.0,0.3549342]
[1752096914878,2.18492609,111060.0,111050.0,0.3349342]
[1752096915077,2.18492609,111060.0,111050.0,0.15488]
[1752096915273,2.32112609,111060.0,111050.0,0.15488]
[1752096915684,1.99112609,111060.0,111050.0,0.002]
[1752096915877,2.32112609,111060.0,111050.0,0.002]
[1752096916080,1.97502882,111060.0,111050.0,0.002]
[1752096916283,2.59626882,111060.0,111050.0,0.002]
[1752096917085,2.59606882,111060.0,111050.0,0.002]
[1752096917581,2.62606882,111060.0,111050.0,0.002]
[1752096919584,2.64606882,111060.0,111050.0,0.002]
[1752096920577,2.7437674,111060.0,111050.0,0.001]
[1752096920774,2.6947674,111060.0,111050.0,0.001]
[1752096921486,0.1800541,111050.0,111040.0,0.00180107]
[1752096921784,2.53920683,111050.0,111040.0,0.00180107]
[1752096922381,2.53920683,111050.0,111040.0,0.01587903]
[1752096922584,2.53920683,111050.0,111040.0,0.01687903]
[1752096922786,2.2638241,111050.0,111040.0,0.01787903]
[1752096922985,2.53920683,111050.0,111040.0,0.01787903]
[1752096925681,2.56920683,111050.0,111040.0,0.01787903]
[1752096929503,2.55920683,111050.0,111040.0,0.01787903]
[1752096929798,2.83458956,111050.0,111040.0,0.01787903]
[1752096929995,2.83432424,111050.0,111040.0,0.01787903]
[1752096930195,2.91502685,111050.0,111040.0,0.01687903]
[1752096930400,2.91602685,111050.0,111040.0,0.01687903]
[1752096930600,2.91602685,111050.0,111040.0,0.00280107]
[1752096931204,0.1800703,111040.0,111030.0,0.00180123]
[1752096931401,2.01115475,111040.0,111030.0,0.01581746]
[1752096931602,2.31022748,111040.0,111030.0,0.01581746]
[1752096932008,0.1800865,111030.0,111020.0,0.01732577]
[1752096932205,1.26234196,111030.0,111020.0,0.01732577]
[1752096932705,1.64234196,111030.0,111020.0,0.01732577]
[1752096933003,1.64334196,111030.0,111020.0,0.01732577]
[1752096933202,0.180119,111010.0,111000.0,0.00180172]
[1752096933398,2.19558414,111010.0,111000.0,0.01708172]
[1752096933600,2.34967414,111010.0,111000.0,0.01708172]
[1752096934000,2.4232879,111010.0,111000.0,0.01708172]
[1752096934200,2.0432879,111010.0,111000.0,0.01708172]
[1752096934402,2.3632879,111010.0,111000.0,0.01708172]
[1752096935395,2.3632879,111010.0,111000.0,0.01821731]
[1752096935708,2.4232879,111010.0,111000.0,0.01821731]
[1752096935905,2.4232879,111010.0,111000.0,0.0322999]
[1752096936104,2.69867063,111010.0,111000.0,0.0180199]
[1752096936305,2.79314258,111010.0,111000.0,0.00393731]
[1752096936996,2.79314258,111010.0,110990.0,0.00180188]
[1752096936997,0.1801352,111000.0,110990.0,0.00180188]
[1752096937200,2.81681066,111000.0,110990.0,0.00180188]
[1752096937402,2.91670624,111000.0,110990.0,0.00180188]
[1752096938706,2.99740885,111000.0,110990.0,0.00176026]
[1752096939109,2.90240624,111000.0,110990.0,0.00176026]
[1752096939304,3.21268624,111000.0,110990.0,0.00176026]
[1752096939610,2.61383351,111000.0,110990.0,0.00176026]
[1752096939799,2.51393793,111000.0,110990.0,0.01733026]
[1752096939999,3.21568054,111000.0,110990.0,0.01733026]
[1752096940309,3.21572054,111000.0,110990.0,0.08473026]
[1752096940512,3.49110327,111000.0,110990.0,0.08473026]
[1752096940808,3.47040066,111000.0,110990.0,0.08473026]
[1752096941402,3.49459066,111000.0,110990.0,0.01733026]
[1752096941603,3.47040066,111000.0,110990.0,0.01733026]
[1752096941809,3.57529327,111000.0,110990.0,0.01733026]
[1752096942813,3.49459066,111000.0,110990.0,0.01733026]
[1752096943902,3.49459066,111000.0,110990.0,0.03128251]
[1752096944105,3.49427066,111000.0,110990.0,0.03128251]
[1752096944316,3.46427066,111000.0,110990.0,0.03128286]
[1752096944802,2.84351066,111000.0,110990.0,0.21143426]
[1752096945004,2.1586552,111000.0,110990.0,0.23445426]
[1752096945200,1.86848,111000.0,110990.0,1.07352899]
[1752096945406,1.86848,111000.0,110990.0,1.45841227]
[1752096945801,1.24772,111000.0,110990.0,1.45841227]
[1752096946006,1.86856,111000.0,110990.0,1.45841227]
[1752096946211,0.002,111000.0,110990.0,1.45841227]
[1752096946414,0.09213617,111010.0,111000.0,0.1801352]
[1752096946708,0.53754241,111010.0,111000.0,0.91175381]
[1752096946915,0.24413254,111020.0,111010.0,0.1801189]
[1752096947110,0.63967724,111020.0,111010.0,0.63635478]
[1752096947308,0.81977994,111020.0,111010.0,0.91173751]
[1752096947505,0.63967724,111020.0,111010.0,0.63635478]
[1752096947704,0.81977994,111020.0,111010.0,0.63635478]
[1752096947907,0.01899724,111020.0,111010.0,1.06650678]
[1752096948214,0.01899724,111020.0,111010.0,0.81650678]
[1752096948414,0.62056,111020.0,111010.0,0.81650678]
[1752096948916,0.62252,111020.0,111010.0,0.85509678]
[1752096949320,0.62248,111020.0,111010.0,0.85509678]
[1752096949620,0.62248,111020.0,111010.0,0.85609678]
[1752096949621,0.62048,111020.0,111010.0,0.85609678]
[1752096949818,0.62048,111020.0,111010.0,0.85809678]
[1752096950017,0.54552883,111030.0,111020.0,0.1801027]
[1752096950217,0.96635992,111030.0,111020.0,0.27653858]
[1752096950419,0.98256992,111030.0,111020.0,0.31512858]
[1752096950614,1.16265642,111030.0,111020.0,0.31512858]
[1752096950917,0.98248992,111030.0,111020.0,0.31512858]
[1752096951313,0.36204992,111030.0,111020.0,0.31512858]
[1752096951510,0.98244992,111030.0,111020.0,0.31512858]
[1752096952320,0.98344992,111030.0,111020.0,0.31512858]
[1752096953314,1.34424992,111030.0,111020.0,0.31512858]
[1752096953512,1.34424992,111030.0,111020.0,0.31434808]
[1752096953708,0.98344992,111030.0,111020.0,0.31434808]
[1752096955018,1.16353642,111030.0,111020.0,0.31434808]
[1752096955717,1.22693642,111030.0,111020.0,0.31434808]
[1752096956720,1.58773642,111030.0,111020.0,0.31434808]
[1752096957019,1.22693642,111030.0,111020.0,0.31434808]
[1752096957418,1.86311915,111030.0,111020.0,0.30697246]
[1752096957612,1.88730915,111030.0,111020.0,0.24007246]
[1752096957917,1.94880915,111030.0,111020.0,0.22292808]
[1752096959023,1.94880915,111030.0,111020.0,0.2230364]
[1752096959321,1.94880915,111030.0,111020.0,0.2074664]
[1752096959724,1.94880915,111030.0,111020.0,0.2230364]
[1752096961026,1.94880915,111030.0,111020.0,0.2074664]
[1752096962323,1.94880915,111030.0,111020.0,0.2230364]
[1752096963326,1.94880915,111030.0,111020.0,0.20902072]
[1752096963628,1.94880915,111030.0,111020.0,0.19345072]
[1752096964420,1.94880915,111030.0,111020.0,0.1801027]
[1752096969732,0.1801028,111020.0,111010.0,0.3151853]
[1752096969935,0.95811553,111020.0,111010.0,0.3441607]
[1752096970128,0.98180553,111020.0,111010.0,0.3441607]
[1752096970329,0.98180553,111020.0,111010.0,0.34416521]
[1752096970836,0.98180553,111020.0,111010.0,0.34516521]
[1752096971728,0.98180553,111020.0,111010.0,0.33059521]
[1752096971929,0.99500436,111020.0,111010.0,0.30110671]
[1752096972138,0.99500436,111020.0,111010.0,0.28556671]
[1752096972338,0.99500436,111020.0,111010.0,0.30110671]
[1752096976146,0.99500436,111020.0,111010.0,0.30116374]
[1752096981235,0.71962163,111020.0,111010.0,0.28562374]
[1752096981441,0.99500436,111020.0,111010.0,0.30116374]
[1752096982745,0.71962163,111020.0,111010.0,0.30116374]
[1752096982946,0.99500436,111020.0,111010.0,0.30116374]
[1752096983746,0.99500436,111020.0,111010.0,0.31524344]
[1752096987746,1.01375672,111020.0,111010.0,0.31524344]
[1752096988251,1.0458525,111020.0,111010.0,0.31524344]
[1752096988450,1.0458525,111020.0,111010.0,0.02954664]
[1752096988852,1.0488525,111020.0,111010.0,0.20866564]
[1752096989046,1.0488525,111020.0,111010.0,0.01446694]
[1752096989353,1.12955511,111020.0,111010.0,0.01446694]
[1752096990344,0.180119,111010.0,111000.0,0.3152202]
[1752096990545,1.63063751,111010.0,111000.0,0.37845729]
[1752096991052,1.63063751,111010.0,111000.0,0.36291729]
[1752096991855,1.63063751,111010.0,111000.0,0.27285169]
[1752096992351,1.63063751,111010.0,111000.0,0.04769709]
[1752096992950,1.63063751,111010.0,111000.0,0.03361574]
[1752096993262,1.90602024,111010.0,111000.0,0.03361574]
[1752096993454,0.1801353,111000.0,110990.0,0.00176026]
[1752096993655,1.22581654,111000.0,110990.0,0.02584306]
[1752096993855,1.25462488,111000.0,110990.0,0.01584306]
[1752096994054,1.25462488,111000.0,110990.0,0.00176026]
[1752096994455,1.25462488,111000.0,110990.0,0.01584373]
[1752096994758,1.25562488,111000.0,110990.0,0.01584373]
[1752096995460,1.24562488,111000.0,110990.0,0.01584373]
[1752096996049,2.49150488,111000.0,110990.0,0.01584373]
[1752096996757,2.55450488,111000.0,110990.0,0.01584373]
[1752096997351,2.55450488,111000.0,110990.0,0.01584421]
[1752096999563,2.55450488,111000.0,110990.0,0.00176026]
[1752096999862,2.55450488,111000.0,110990.0,0.01584421]
[1752097000059,2.55450488,111000.0,110990.0,0.00176026]
[1752097004868,2.56450488,111000.0,110990.0,0.00176026]
[1752097008769,2.93450488,111000.0,110990.0,0.00176026]
[1752097009369,3.01520749,111000.0,110990.0,0.00176026]
[1752097009569,2.93450488,111000.0,110990.0,0.00176026]
[1752097009769,3.01520749,111000.0,110990.0,0.00176026]
[1752097010370,2.99520749,111000.0,110990.0,0.00176026]
[1752097011268,2.97520749,111000.0,110990.0,0.00176026]
[1752097014774,2.98520749,111000.0,110990.0,0.00176026]
[1752097015275,3.60516749,111000.0,110990.0,0.00176026]
[1752097015781,3.59516749,111000.0,110990.0,0.00176026]
[1752097018376,3.59516749,111000.0,110990.0,0.02969911]
[1752097019575,3.56516749,111000.0,110990.0,0.02969911]
[1752097019971,3.56516749,111000.0,110990.0,0.01561384]
[1752097020168,3.56516749,111000.0,110990.0,0.00176026]
[1752097020373,0.1801839,110970.0,110960.0,0.35918727]
[1752097020574,1.55753902,110970.0,110960.0,0.7081581]
[1752097020871,1.6042033,110970.0,110960.0,0.7317881]
[1752097021072,1.6042033,110970.0,110960.0,0.6867387]
[1752097021674,1.6042033,110970.0,110960.0,0.6514087]
[1752097022176,1.6042033,110970.0,110960.0,0.6554087]
[1752097022376,1.6042033,110970.0,110960.0,0.6544087]
[1752097022779,1.6042033,110970.0,110960.0,0.6534087]
[1752097024380,1.6283033,110970.0,110960.0,0.6534087]
[1752097024679,1.6042033,110970.0,110960.0,0.6534087]
[1752097024986,1.61656293,110970.0,110960.0,0.2934087]
[1752097025282,1.61656293,110970.0,110960.0,0.6534087]
[1752097025976,1.61656293,110970.0,110960.0,0.2934087]
[1752097026179,1.61656293,110970.0,110960.0,0.6734087]
[1752097026780,1.89404616,110970.0,110960.0,0.6839733]
[1752097027778,1.91814616,110970.0,110960.0,0.3739733]
[1752097027985,1.89404616,110970.0,110960.0,0.37400337]
[1752097029182,1.89404616,110970.0,110960.0,0.36343877]
[1752097030279,1.91671616,110970.0,110960.0,0.36343877]
[1752097030677,1.91671616,110970.0,110960.0,0.29343877]
[1752097030888,1.91671616,110970.0,110960.0,0.38343192]
[1752097032495,1.98091616,110970.0,110960.0,0.38343192]
[1752097034696,1.98091616,110970.0,110960.0,0.37343192]
[1752097034893,1.98091616,110970.0,110960.0,0.38399655]
[1752097035088,0.10661667,110970.0,110960.0,0.68311953]
[1752097035290,0.03308006,110970.0,110960.0,1.97529217]
[1752097035489,0.37934538,110980.0,110970.0,0.1801839]
[1752097035490,0.01854538,110980.0,110970.0,0.1801839]
[1752097035699,0.63830538,110980.0,110970.0,1.29308053]
[1752097035900,0.01854538,110980.0,110970.0,1.47330453]
[1752097036197,2.16299667,111000.0,110990.0,0.1801515]
[1752097036396,2.78275667,111000.0,110990.0,0.30392515]
[1752097036597,1.98286147,111000.0,110990.0,0.35161515]
[1752097036796,2.60262147,111000.0,110990.0,0.35161515]
[1752097036998,2.78275667,111000.0,110990.0,0.35161515]
[1752097037194,1.62548834,111000.0,110990.0,0.35161515]
[1752097037396,2.52168132,111000.0,110990.0,0.36217688]
[1752097037594,2.70381652,111000.0,110990.0,0.36217688]
[1752097037997,1.90392132,111000.0,110990.0,0.36217688]
[1752097038195,2.16284132,111000.0,110990.0,0.36217688]
[1752097038396,2.16284132,111000.0,110990.0,0.57860986]
[1752097038696,2.16284132,111000.0,110990.0,0.93940986]
[1752097038996,1.26868834,111000.0,110990.0,0.30217688]
[1752097039197,2.06854364,111000.0,110990.0,0.30217688]
[1752097039399,1.88840834,111000.0,110990.0,0.36097688]
[1752097039600,1.26868834,111000.0,110990.0,0.36040969]
[1752097039800,1.24988,111000.0,110990.0,0.90140169]
[1752097040001,1.24988,111000.0,110990.0,1.16704048]
[1752097040202,1.86956,111000.0,110990.0,1.16704048]
[1752097040397,1.86956,111000.0,110990.0,1.39704048]
[1752097040602,1.86956,111000.0,110990.0,1.62373583]
[1752097041095,0.62364,111000.0,110990.0,1.63429621]
[1752097041405,0.62364,111000.0,110990.0,1.38373583]
[1752097041595,0.004,111000.0,110990.0,1.60373583]
[1752097041801,0.62364,111000.0,110990.0,1.61429608]
[1752097042200,0.62364,111000.0,110990.0,1.61373583]
[1752097042507,0.62364,111000.0,110990.0,1.62429602]
[1752097042908,0.71795288,111020.0,111010.0,0.180119]
[1752097042909,0.44175236,111020.0,111010.0,0.180119]
[1752097043202,0.43917,111020.0,111010.0,0.23271081]
[1752097043403,0.69797,111020.0,111010.0,0.30980293]
[1752097044206,0.70297,111020.0,111010.0,0.30980293]
[1752097044810,0.70997,111020.0,111010.0,0.30980293]
[1752097045206,0.70997,111020.0,111010.0,0.29572112]
[1752097045411,0.70997,111020.0,111010.0,0.30980019]
[1752097045804,0.8900728,111020.0,111010.0,0.30980019]
[1752097046010,1.3099728,111020.0,111010.0,0.30980019]
[1752097046205,1.12987,111020.0,111010.0,0.30980019]
[1752097046413,1.3099728,111020.0,111010.0,0.30980055]
[1752097046910,1.12987,111020.0,111010.0,0.30980055]
[1752097047311,0.76907,111020.0,111010.0,0.29572112]
[1752097047605,1.16267225,111020.0,111010.0,0.30980016]
[1752097048008,0.80187225,111020.0,111010.0,0.30980016]
[1752097048214,0.74265225,111020.0,111010.0,0.30980016]
[1752097049013,0.70981,111020.0,111010.0,0.30980016]
[1752097049208,0.76971,111020.0,111010.0,0.30980016]
[1752097049415,1.3066128,111020.0,111010.0,0.30980016]
[1752097049820,1.3066128,111020.0,111010.0,0.29572112]
[1752097050016,0.6871728,111020.0,111010.0,0.30980043]
[1752097050215,0.76267,111020.0,111010.0,0.30980043]
[1752097050417,0.9427728,111020.0,111010.0,0.30980043]
[1752097050720,1.3035728,111020.0,111010.0,0.30980043]
[1752097050919,1.3035728,111020.0,111010.0,0.25010043]
[1752097051121,1.12347,111020.0,111010.0,0.25010043]
[1752097051420,1.3035728,111020.0,111010.0,0.25010043]
[1752097051817,1.12347,111020.0,111010.0,0.25010043]
[1752097053223,0.76267,111020.0,111010.0,0.25010043]
[1752097054323,1.12347,111020.0,111010.0,0.25010043]
[1752097054723,1.3035727,111020.0,111010.0,0.25010043]
[1752097055120,1.58627322,111020.0,111010.0,0.19419831]
[1752097055326,1.58627322,111020.0,111010.0,0.180119]
[1752097055519,1.58627322,111020.0,111010.0,0.083519]
[1752097056324,1.61898582,111020.0,111010.0,0.083519]
[1752097057825,1.61898582,111020.0,111010.0,0.0975989]
[1752097058625,1.59631582,111020.0,111010.0,0.083519]
[1752097058825,1.61975582,111020.0,111010.0,0.083519]
[1752097060726,1.61975582,111020.0,111010.0,0.09759916]
[1752097060928,1.6197992,111020.0,111010.0,0.09759916]
[1752097061119,1.6197992,111020.0,111010.0,0.083519]
[1752097061320,1.6197992,111020.0,111010.0,0.09759943]
[1752097061627,1.4396965,111020.0,111010.0,0.09759943]
[1752097062226,1.6197992,111020.0,111010.0,0.09759943]
[1752097062929,1.6198217,111020.0,111010.0,0.09759936]
[1752097063118,1.6198217,111020.0,111010.0,0.083519]
[1752097063317,1.6198217,111020.0,111010.0,0.09759935]
[1752097063925,1.6198217,111020.0,111010.0,0.09759939]
[1752097066226,1.6198217,111020.0,111010.0,0.10759939]
[1752097068634,1.61990253,111020.0,111010.0,0.10759939]
[1752097069732,1.61990253,111020.0,111010.0,0.10759945]
[1752097070828,1.89607495,111020.0,111010.0,0.09759945]
[1752097071033,1.89607495,111020.0,111010.0,0.10759945]
[1752097074238,1.89607495,111020.0,111010.0,0.09759945]
[1752097074537,1.89607495,111020.0,111010.0,0.10759945]
[1752097076633,1.9770151,111020.0,111010.0,0.10759945]
[1752097079342,1.9770151,111020.0,111010.0,0.09759945]
[1752097079548,1.9770151,111020.0,111010.0,0.10759945]
[1752097080033,1.89607495,111020.0,111010.0,0.10759945]
[1752097080642,1.89607495,111020.0,111010.0,0.093519]
[1752097080849,1.89607495,111020.0,111010.0,0.1075996]
[1752097083541,1.89607495,111020.0,111010.0,0.1228296]
[1752097087950,1.89607495,111020.0,111010.0,0.1075996]
[1752097088149,1.89547495,111020.0,111010.0,0.1233196]
[1752097093645,1.89547495,111020.0,111010.0,0.14016038]
[1752097094556,1.71537225,111020.0,111010.0,0.14016038]
[1752097094851,1.89547495,111020.0,111010.0,0.14016038]
[1752097096056,1.71525225,111020.0,111010.0,0.14016038]
[1752097096353,1.61916848,111020.0,111010.0,0.14016038]
[1752097097156,1.00048848,111020.0,111010.0,0.14016038]
[1752097097452,1.61912848,111020.0,111010.0,0.14016038]
[1752097098756,0.73474578,111020.0,111010.0,0.14016038]
[1752097098950,1.53348848,111020.0,111010.0,0.14016038]
[1752097099150,1.55710848,111020.0,111010.0,0.19886038]
[1752097099358,1.37696578,111020.0,111010.0,0.47504685]
[1752097100148,1.35334578,111020.0,111010.0,0.49844685]
[1752097100352,1.35034578,111020.0,111010.0,0.55784685]
[1752097100557,1.35134578,111020.0,111010.0,0.55784685]
[1752097100956,1.34934578,111020.0,111010.0,0.55784685]
[1752097101557,1.34934578,111020.0,111010.0,0.53444685]
[1752097102062,1.43246578,111020.0,111010.0,0.53444685]
[1752097102454,1.40884578,111020.0,111010.0,0.53444685]
[1752097103149,1.43246578,111020.0,111010.0,0.53444685]
[1752097104359,1.43246578,111020.0,111010.0,0.52036625]